fUSD/lending_fUSD_20241024
["ID","MTS","AMOUNT","RATE_DAILY","PERIOD"]
[340747449,1729774243563,-6911.29312655,0.000645,120]
[340747450,1729774243574,-873.04153788,0.000645,120]
[340747451,1729774243585,-276.07196702,0.000645,120]
[340747452,1729774243596,-301.6798,0.000645,120]
[340747453,1729774243607,-5807.5824484,0.000645,120]
[340747454,1729774243619,-323932.27910991,0.000645,120]
[340747455,1729774243656,-64932.45842964,0.000645,120]
[340747456,1729774243666,-176.69,0.000646,7]
[340747457,1729774243678,-150.0,0.000646,120]
[340747458,1729774243687,-173.98935599,0.00064634,28]
[340747459,1729774243697,-150.0,0.00064667,120]
[340747460,1729774243707,-150.0,0.000652,120]
[340747461,1729774243718,-2451.9162341,0.00065233,15]
[340747462,1729774243728,-5000.0,0.00065289,120]
[340747463,1729774243738,-300.0,0.000653,2]
[340747464,1729774243749,-150.0,0.00065333,120]
[340747465,1729774243759,-326.196,0.00065493,120]
[340747466,1729774243769,-973.971,0.00065493,120]
[340747467,1729774243779,-150.0,0.00065493,120]
[340747468,1729774243789,-153.79598468,0.00065499,120]
[340747469,1729774243799,-84777.50758415,0.000655,120]
[340747470,1729774243812,-9924.64691084,0.000655,120]
[340747471,1729774243824,-1452.78818591,0.000655,120]
[340747472,1729774243836,-14317.07754689,0.000655,120]
[340747473,1729774243848,-10197.54546216,0.000655,120]
[340747474,1729774243860,-26714.25839075,0.000655,120]
[340747493,1729774246387,-153.0,0.00054795,120]
[340747494,1729774246397,-153.0,0.00054795,120]
[340747495,1729774246406,-301.54,0.0006449,30]
[340747496,1729774246417,-4592.46,0.000655,120]
[340747497,1729774246550,-7584.41249999,0.000655,120]
[340747503,1729774709002,-150.0,0.00015342,2]
[340747504,1729774750632,150.0,0.00015342,2]
[340747505,1729774791995,150.0,0.00015342,2]
[340747506,1729774802859,-150.0,0.00015342,2]
[340747507,1729774803466,-150.0,0.00015342,2]
[340747508,1729774803938,-150.0,0.00015342,2]
[340747509,1729774805669,-20.71466594,0.00015342,2]
[340747511,1729775241145,-286.08269823,0.00015242,2]
[340747512,1729775241165,-150.0,0.00015329,2]
[340747513,1729775241186,-172.36,0.00015342,2]
[340747514,1729775241206,-159.63,0.00015342,2]
[340747515,1729775241226,-192.12,0.00019178,2]
[340747516,1729775241245,-300.0,0.00019725,2]
[340747517,1729775241264,-377.12856158,0.000411,2]
[340747518,1729775241284,-600.0,0.0005,120]
[340747519,1729775241303,-173.465,0.0005125,120]
[340747520,1729775241323,-173.466,0.0005125,120]
[340747521,1729775241343,-173.466,0.0005125,120]
[340747522,1729775241362,-173.465,0.0005125,120]
[340747523,1729775241382,-173.466,0.0005125,120]
[340747524,1729775241401,-500.0,0.00054795,120]
[340747525,1729775241420,-803.0,0.00054795,120]
[340747526,1729775241438,-2774.728029,0.000597,12]
[340747527,1729775241457,-150.00598913,0.0006,10]
[340747528,1729775241476,-945.89884249,0.0006,2]
[340747529,1729775241496,-173.7,0.0006,120]
[340747530,1729775241515,-494.51667197,0.0006,120]
[340747531,1729775241533,-341.153,0.000602,30]
[340747532,1729775241552,-556.0,0.000603,30]
[340747533,1729775241571,-150.0,0.00060593,120]
[340747534,1729775241591,-394.98,0.00060666,2]
[340747535,1729775241610,-150.0,0.00061397,120]
[340747536,1729775241629,-500.0,0.000615,120]
[340747537,1729775241652,-255.6,0.00061747,30]
[340747538,1729775241673,-250.0,0.00061889,120]
[340747539,1729775241693,-500.0,0.00062,120]
[340747540,1729775241711,-250.0,0.00062196,120]
[340747541,1729775241731,-23900.0,0.00062317,2]
[340747542,1729775241750,-33931.25,0.000625,120]
[340747543,1729775241771,-250.0,0.0006269,120]
[340747544,1729775241792,-394.98,0.0006293,2]
[340747545,1729775241811,-3000.0,0.00063,2]
[340747546,1729775241830,-1003.97113437,0.0006321,120]
[340747547,1729775241849,-161.29,0.00063816,2]
[340747548,1729775241869,-1000.0,0.00063897,120]
[340747549,1729775241890,-634.0,0.00064,120]
[340747550,1729775241910,-1612.74493611,0.0006419,120]
[340747551,1729775241931,-1471.14974046,0.000648,15]
[340747552,1729775241956,-6311.03177502,0.00064889,15]
[340747553,1729775241978,-251.29,0.00064889,30]
[340747554,1729775242000,-209.4,0.00064889,30]
[340747555,1729775242019,-174.5,0.00064889,30]
[340747556,1729775242038,-872.55,0.00064889,30]
[340747557,1729775242060,-10659.77183516,0.0006489,15]
[340747560,1729775366104,-150.0,0.00015242,2]
[340747561,1729775391129,232.825,0.00015242,2]
[340747563,1729775431444,-372.57,0.00062314,2]
[340747564,1729775431454,-172.00707993,0.000636,120]
[340747565,1729775431465,-418.54007673,0.000636,120]
[340747566,1729775431504,-1244.45284334,0.000636,120]
[340747567,1729775431513,-500.0,0.00064,120]
[340747568,1729775431523,-250.0,0.00064049,120]
[340747569,1729775431532,-1215.49715666,0.00064081,2]
[340747570,1729775431543,-3781.88284334,0.00064081,2]
[340747571,1729775431552,-1000.0,0.00064169,120]
[340747572,1729775431561,-250.0,0.00064339,120]
[340747573,1729775431570,-372.57,0.00064578,2]
[340747574,1729775431579,-289.79992841,0.000648,28]
[340747575,1729775431589,-1000.0,0.0006488,60]
[340747576,1729775431599,-702.5196544,0.0006489,14]
[340747577,1729775431608,-1053.98,0.00064899,120]
[340747578,1729775431617,-207544.27874864,0.00064899,2]
[340747579,1729775431628,-30318.41071362,0.00064899,2]
[340747580,1729775431639,-7137.31053774,0.00064899,2]
[340747581,1729775431648,-55555.0,0.000649,120]
[340747582,1729775431657,-203.339009,0.000649,36]
[340747583,1729775431666,-7500.0,0.000649,120]
[340747584,1729775431675,-810.79227661,0.0006497,15]
[340747585,1729775431685,-13783.4687024,0.0006498,15]
[340747586,1729775431694,-1757.69700171,0.0006498,13]
[340747587,1729775431703,-150.0,0.00064986,120]
[340747588,1729775431712,-150.0,0.00064986,120]
[340747589,1729775431721,-150.0,0.00064986,120]
[340747590,1729775431730,-6444.88900627,0.0006499,13]
[340747591,1729775431739,-160.35,0.0006499,120]
[340747592,1729775431748,-171.863,0.00064999,120]
[340747593,1729775431757,-197.72754008,0.00064999,31]
[340747594,1729775431767,-674.016,0.00064999,120]
[340747595,1729775431777,-40630.97252947,0.00065,120]
[340747596,1729775431788,-521.29881561,0.00065,120]
[340747597,1729775431799,-302.57148613,0.00065,120]
[340747598,1729775431810,-45145.15716879,0.00065,120]
[340747599,1729775431819,-10633.98812585,0.00065,120]
[340747600,1729775431831,-489366.01187415,0.00065,120]
[340747601,1729775431840,-462.56279386,0.00065,30]
[340747602,1729775431850,-172.77066497,0.00065105,100]
[340747603,1729775431859,-500.0,0.00065205,120]
[340747604,1729775431868,-500.0,0.00065205,120]
[340747605,1729775431880,-500.0,0.00065205,120]
[340747606,1729775431890,-500.0,0.00065205,120]
[340747607,1729775431898,-500.0,0.00065205,120]
[340747608,1729775431908,-350.36066159,0.00065205,120]
[340747609,1729775431917,-500.0,0.00065205,120]
[340747610,1729775431926,-500.0,0.00065205,120]
[340747611,1729775431935,-500.0,0.00065205,120]
[340747612,1729775431944,-500.0,0.00065205,120]
[340747613,1729775431955,-500.0,0.00065205,120]
[340747614,1729775431964,-500.0,0.00065205,120]
[340747615,1729775431973,-500.0,0.00065205,120]
[340747616,1729775431982,-502.39551463,0.00065205,120]
[340747617,1729775431991,-500.0,0.00065205,120]
[340747618,1729775432000,-500.0,0.00065205,120]
[340747619,1729775432009,-500.0,0.00065205,120]
[340747620,1729775432018,-500.0,0.00065205,120]
[340747621,1729775432027,-400.9544112,0.00065205,120]
[340747622,1729775432036,-500.0,0.00065205,120]
[340747623,1729775432045,-500.0,0.00065205,120]
[340747624,1729775432054,-582.48038617,0.00065205,120]
[340747625,1729775432064,-300.00755717,0.00065205,120]
[340747626,1729775432073,-500.0,0.00065205,120]
[340747627,1729775432081,-500.0,0.00065205,120]
[340747628,1729775432090,-500.0,0.00065205,120]
[340747629,1729775432099,-500.0,0.00065205,120]
[340747630,1729775432108,-500.0,0.00065205,120]
[340747631,1729775432117,-893.43,0.00065205,120]
[340747632,1729775432126,-893.43,0.00065205,120]
[340747633,1729775432135,-500.0,0.00065205,120]
[340747634,1729775432144,-500.0,0.00065205,120]
[340747635,1729775432153,-500.0,0.00065205,120]
[340747636,1729775432163,-500.0,0.00065205,120]
[340747637,1729775432172,-217.00760207,0.00065205,120]
[340747638,1729775432181,-1749.11,0.00065205,120]
[340747639,1729775432190,-1749.11,0.00065205,120]
[340747640,1729775432199,-1749.11,0.00065205,120]
[340747641,1729775432208,-1749.11,0.00065205,120]
[340747642,1729775432217,-1749.11,0.00065205,120]
[340747643,1729775432226,-1749.11,0.00065205,120]
[340747644,1729775432235,-500.0,0.00065205,120]
[340747645,1729775432244,-1749.11,0.00065205,120]
[340747646,1729775432253,-495.41026264,0.00065205,120]
[340747647,1729775432262,-500.0,0.00065205,120]
[340747648,1729775432272,-500.0,0.00065205,120]
[340747649,1729775432281,-500.0,0.00065205,120]
[340747650,1729775432290,-500.0,0.00065205,120]
[340747651,1729775432299,-500.0,0.00065205,120]
[340747652,1729775432308,-500.0,0.00065205,120]
[340747653,1729775432317,-500.0,0.00065205,120]
[340747654,1729775432327,-500.0,0.00065205,120]
[340747655,1729775432335,-500.0,0.00065205,120]
[340747656,1729775432344,-500.0,0.00065205,120]
[340747657,1729775432354,-500.0,0.00065205,120]
[340747658,1729775432363,-413.04,0.00065205,120]
[340747659,1729775432372,-500.0,0.00065205,120]
[340747660,1729775432384,-500.0,0.00065205,120]
[340747661,1729775432393,-500.0,0.00065205,120]
[340747662,1729775432402,-500.0,0.00065205,120]
[340747663,1729775432412,-500.0,0.00065205,120]
[340747664,1729775432421,-500.0,0.00065205,120]
[340747665,1729775432430,-500.0,0.00065205,120]
[340747666,1729775432439,-500.0,0.00065205,120]
[340747667,1729775432448,-500.0,0.00065205,120]
[340747668,1729775432458,-500.0,0.00065205,120]
[340747669,1729775432467,-500.0,0.00065205,120]
[340747670,1729775432476,-500.0,0.00065205,120]
[340747671,1729775432486,-500.0,0.00065205,120]
[340747672,1729775432495,-500.0,0.00065205,120]
[340747673,1729775432504,-500.0,0.00065205,120]
[340747674,1729775432514,-402.89918254,0.00065205,120]
[340747675,1729775432525,-500.0,0.00065205,120]
[340747676,1729775432534,-500.0,0.00065205,120]
[340747677,1729775432543,-1247.18,0.00065205,120]
[340747678,1729775432553,-1247.18,0.00065205,120]
[340747679,1729775432563,-1247.18,0.00065205,120]
[340747680,1729775432573,-1247.18,0.00065205,120]
[340747681,1729775432583,-1247.18,0.00065205,120]
[340747682,1729775432592,-1247.18,0.00065205,120]
[340747683,1729775432602,-1247.18,0.00065205,120]
[340747684,1729775432611,-500.0,0.00065205,120]
[340747685,1729775432620,-500.0,0.00065205,120]
[340747686,1729775432630,-500.0,0.00065205,120]
[340747687,1729775432639,-500.0,0.00065205,120]
[340747688,1729775432648,-500.0,0.00065205,120]
[340747689,1729775432657,-500.0,0.00065205,120]
[340747690,1729775432667,-500.0,0.00065205,120]
[340747691,1729775432676,-500.0,0.00065205,120]
[340747692,1729775432687,-500.0,0.00065205,120]
[340747693,1729775432696,-500.0,0.00065205,120]
[340747694,1729775432706,-500.0,0.00065205,120]
[340747695,1729775432715,-205.88360874,0.00065205,120]
[340747696,1729775432729,-294.11639126,0.00065205,120]
[340747697,1729775432738,-500.0,0.00065205,120]
[340747698,1729775432747,-500.0,0.00065205,120]
[340747699,1729775432757,-500.0,0.00065205,120]
[340747700,1729775432766,-500.0,0.00065205,120]
[340747701,1729775432776,-500.0,0.00065205,120]
[340747702,1729775432785,-1886.98,0.00065205,120]
[340747703,1729775432794,-1886.98,0.00065205,120]
[340747704,1729775432803,-1886.98,0.00065205,120]
[340747705,1729775432812,-1886.98,0.00065205,120]
[340747706,1729775432940,-1886.98,0.00065205,120]
[340747707,1729775432950,-1886.98,0.00065205,120]
[340747708,1729775432960,-500.0,0.00065205,120]
[340747709,1729775432970,-500.0,0.00065205,120]
[340747710,1729775432980,-500.0,0.00065205,120]
[340747711,1729775432990,-500.0,0.00065205,120]
[340747712,1729775433000,-500.0,0.00065205,120]
[340747713,1729775433009,-500.0,0.00065205,120]
[340747714,1729775433019,-500.0,0.00065205,120]
[340747715,1729775433028,-500.0,0.00065205,120]
[340747716,1729775433038,-874.57,0.00065205,120]
[340747717,1729775433047,-874.57,0.00065205,120]
[340747718,1729775433057,-816.19,0.00065205,120]
[340747719,1729775433067,-816.19,0.00065205,120]
[340747720,1729775433076,-816.19,0.00065205,120]
[340747721,1729775433086,-816.19,0.00065205,120]
[340747722,1729775433095,-816.19,0.00065205,120]
[340747723,1729775433104,-816.19,0.00065205,120]
[340747724,1729775433113,-816.19,0.00065205,120]
[340747725,1729775433122,-500.0,0.00065205,120]
[340747726,1729775433131,-500.0,0.00065205,120]
[340747727,1729775433141,-500.0,0.00065205,120]
[340747728,1729775433150,-500.0,0.00065205,120]
[340747729,1729775433160,-500.0,0.00065205,120]
[340747730,1729775433169,-500.0,0.00065205,120]
[340747731,1729775433178,-500.0,0.00065205,120]
[340747732,1729775433187,-500.0,0.00065205,120]
[340747733,1729775433197,-500.0,0.00065205,120]
[340747734,1729775433206,-357.97359898,0.00065205,120]
[340747735,1729775433215,-500.0,0.00065205,120]
[340747736,1729775433224,-500.0,0.00065205,120]
[340747737,1729775433234,-500.0,0.00065205,120]
[340747738,1729775433244,-510.40538348,0.00065205,120]
[340747739,1729775433254,-500.0,0.00065205,120]
[340747740,1729775433263,-500.0,0.00065205,120]
[340747741,1729775433272,-500.0,0.00065205,120]
[340747742,1729775433282,-500.0,0.00065205,120]
[340747743,1729775433291,-500.0,0.00065205,120]
[340747744,1729775433301,-500.0,0.00065205,120]
[340747745,1729775433309,-500.0,0.00065205,120]
[340747746,1729775433319,-500.0,0.00065205,120]
[340747747,1729775433328,-500.0,0.00065205,120]
[340747748,1729775433337,-500.0,0.00065205,120]
[340747749,1729775433347,-500.0,0.00065205,120]
[340747750,1729775433356,-500.0,0.00065205,120]
[340747751,1729775433365,-500.0,0.00065205,120]
[340747752,1729775433374,-500.0,0.00065205,120]
[340747753,1729775433383,-511.61835033,0.00065205,120]
[340747754,1729775433393,-838.71,0.00065205,120]
[340747755,1729775433404,-838.71,0.00065205,120]
[340747756,1729775433413,-2111.79,0.00065205,120]
[340747757,1729775433422,-500.0,0.00065205,120]
[340747758,1729775433431,-2111.79,0.00065205,120]
[340747759,1729775433441,-500.0,0.00065205,120]
[340747760,1729775433450,-500.0,0.00065205,120]
[340747761,1729775433459,-500.0,0.00065205,120]
[340747762,1729775433469,-500.0,0.00065205,120]
[340747763,1729775433478,-500.0,0.00065205,120]
[340747764,1729775433488,-500.0,0.00065205,120]
[340747765,1729775433498,-500.0,0.00065205,120]
[340747766,1729775433507,-500.0,0.00065205,120]
[340747767,1729775433517,-500.0,0.00065205,120]
[340747768,1729775433527,-500.0,0.00065205,120]
[340747769,1729775433536,-500.0,0.00065205,120]
[340747770,1729775433546,-500.0,0.00065205,120]
[340747771,1729775433556,-500.0,0.00065205,120]
[340747772,1729775433565,-500.0,0.00065205,120]
[340747773,1729775433574,-500.0,0.00065205,120]
[340747774,1729775433584,-463.33273211,0.00065205,120]
[340747775,1729775433593,-500.0,0.00065205,120]
[340747776,1729775433602,-500.0,0.00065205,120]
[340747777,1729775433611,-500.0,0.00065205,120]
[340747778,1729775433620,-500.0,0.00065205,120]
[340747779,1729775433629,-500.0,0.00065205,120]
[340747780,1729775433639,-500.0,0.00065205,120]
[340747781,1729775433648,-500.0,0.00065205,120]
[340747782,1729775433658,-501.32930525,0.00065205,120]
[340747783,1729775433667,-500.0,0.00065205,120]
[340747784,1729775433676,-500.0,0.00065205,120]
[340747785,1729775433686,-500.0,0.00065205,120]
[340747786,1729775433695,-500.0,0.00065205,120]
[340747787,1729775433705,-852.59,0.00065205,120]
[340747788,1729775433714,-852.59,0.00065205,120]
[340747789,1729775433724,-2000.0,0.000653,120]
[340747790,1729775433734,-205.72,0.00065315,120]
[340747791,1729775433743,-500.0,0.00065489,120]
[340747792,1729775433752,-500.0,0.00065489,120]
[340747793,1729775433762,-500.0,0.00065489,120]
[340747794,1729775433772,-500.0,0.00065489,120]
[340747795,1729775433781,-500.0,0.00065489,120]
[340747796,1729775433790,-893.43,0.00065489,120]
[340747797,1729775433799,-500.0,0.00065489,120]
[340747798,1729775433809,-584.4767253,0.00065489,120]
[340747799,1729775433818,-500.0,0.00065489,120]
[340747800,1729775433827,-500.0,0.00065489,120]
[340747801,1729775433837,-874.57,0.00065489,120]
[340747802,1729775433846,-500.0,0.00065489,120]
[340747803,1729775433855,-500.0,0.00065489,120]
[340747804,1729775433865,-500.0,0.00065489,120]
[340747805,1729775433876,-500.0,0.00065489,120]
[340747806,1729775433886,-838.71,0.00065489,120]
[340747807,1729775433896,-2111.79,0.00065489,120]
[340747808,1729775433905,-500.0,0.00065489,120]
[340747809,1729775433915,-500.0,0.00065489,120]
[340747810,1729775433924,-500.0,0.00065489,120]
[340747811,1729775433933,-852.59,0.00065489,120]
[340747812,1729775433943,-717.71149128,0.0006549,120]
[340747813,1729775433954,-500.0,0.00065499,120]
[340747814,1729775433963,-500.0,0.00065499,120]
[340747815,1729775433972,-500.0,0.00065499,120]
[340747816,1729775433981,-500.0,0.00065499,120]
[340747817,1729775433990,-500.0,0.00065499,120]
[340747818,1729775433999,-500.0,0.00065499,120]
[340747819,1729775434008,-500.0,0.00065499,120]
[340747820,1729775434019,-893.43,0.00065499,120]
[340747821,1729775434028,-500.0,0.00065499,120]
[340747822,1729775434038,-1749.11,0.00065499,120]
[340747823,1729775434047,-1749.11,0.00065499,120]
[340747824,1729775434057,-500.0,0.00065499,120]
[340747825,1729775434066,-500.0,0.00065499,120]
[340747826,1729775434076,-295.7,0.00065499,120]
[340747827,1729775434086,-500.0,0.00065499,120]
[340747828,1729775434095,-500.0,0.00065499,120]
[340747829,1729775434104,-500.0,0.00065499,120]
[340747830,1729775434113,-1247.18,0.00065499,120]
[340747831,1729775434122,-1247.18,0.00065499,120]
[340747832,1729775434132,-500.0,0.00065499,120]
[340747833,1729775434141,-500.0,0.00065499,120]
[340747834,1729775434151,-500.0,0.00065499,120]
[340747835,1729775434160,-500.0,0.00065499,120]
[340747836,1729775434170,-500.0,0.00065499,120]
[340747837,1729775434179,-1886.98,0.00065499,120]
[340747838,1729775434188,-500.0,0.00065499,120]
[340747839,1729775434198,-500.0,0.00065499,120]
[340747840,1729775434207,-874.57,0.00065499,120]
[340747841,1729775434217,-816.19,0.00065499,120]
[340747842,1729775434226,-816.19,0.00065499,120]
[340747843,1729775434236,-500.0,0.00065499,120]
[340747844,1729775434245,-500.0,0.00065499,120]
[340747845,1729775434254,-500.0,0.00065499,120]
[340747846,1729775434264,-500.0,0.00065499,120]
[340747847,1729775434278,-500.0,0.00065499,120]
[340747848,1729775434287,-504.66193171,0.00065499,120]
[340747849,1729775434297,-838.71,0.00065499,120]
[340747850,1729775434307,-2111.79,0.00065499,120]
[340747851,1729775434316,-500.0,0.00065499,120]
[340747852,1729775434325,-500.0,0.00065499,120]
[340747853,1729775434334,-500.0,0.00065499,120]
[340747854,1729775434344,-500.0,0.00065499,120]
[340747855,1729775434353,-500.0,0.00065499,120]
[340747856,1729775434362,-500.0,0.00065499,120]
[340747857,1729775434371,-322.07430282,0.00065499,120]
[340747858,1729775434382,-852.59,0.00065499,120]
[340747859,1729775434391,-340439.30341931,0.000655,120]
[340747860,1729775434401,-2000.0,0.000655,30]
[340747861,1729775434410,-200.0,0.000655,30]
[340747862,1729775434419,-2000.0,0.000655,30]
[340747863,1729775434428,-200.0,0.000655,30]
[340747864,1729775434438,-200.0,0.000655,30]
[340747865,1729775434447,-289.79992836,0.00065529,28]
[340747866,1729775434457,-10141.47,0.000656,120]
[340747867,1729775434466,-500.0,0.00065689,120]
[340747868,1729775434476,-479.10277825,0.00065689,120]
[340747869,1729775434485,-500.0,0.00065689,120]
[340747870,1729775434495,-500.0,0.00065689,120]
[340747871,1729775434504,-351.19315958,0.00065689,120]
[340747872,1729775434513,-893.43,0.00065689,120]
[340747873,1729775434525,-500.0,0.00065689,120]
[340747874,1729775434534,-500.0,0.00065689,120]
[340747875,1729775434544,-500.0,0.00065689,120]
[340747876,1729775434553,-874.57,0.00065689,120]
[340747877,1729775434563,-500.0,0.00065689,120]
[340747878,1729775434572,-500.0,0.00065689,120]
[340747879,1729775434581,-500.0,0.00065689,120]
[340747880,1729775434592,-838.71,0.00065689,120]
[340747881,1729775434601,-2111.79,0.00065689,120]
[340747882,1729775434611,-500.0,0.00065689,120]
[340747883,1729775434620,-500.0,0.00065689,120]
[340747884,1729775434630,-500.0,0.00065689,120]
[340747885,1729775434640,-852.59,0.00065689,120]
[340747886,1729775434649,-500.0,0.00065698,120]
[340747887,1729775434659,-500.0,0.00065698,120]
[340747888,1729775434669,-500.0,0.00065698,120]
[340747889,1729775434678,-893.43,0.00065698,120]
[340747890,1729775434688,-500.0,0.00065698,120]
[340747891,1729775434697,-500.0,0.00065698,120]
[340747892,1729775434707,-500.0,0.00065698,120]
[340747893,1729775434716,-874.57,0.00065698,120]
[340747894,1729775434725,-649.76211658,0.00065698,120]
[340747895,1729775434734,-500.0,0.00065698,120]
[340747896,1729775434744,-500.0,0.00065698,120]
[340747897,1729775434754,-838.71,0.00065698,120]
[340747898,1729775434764,-2111.79,0.00065698,120]
[340747899,1729775434774,-500.0,0.00065698,120]
[340747900,1729775434783,-500.0,0.00065698,120]
[340747901,1729775434793,-500.0,0.00065698,120]
[340747902,1729775434802,-852.59,0.00065698,120]
[340747903,1729775434812,-500.0,0.00065699,120]
[340747904,1729775434821,-637.36766247,0.00065699,120]
[340747905,1729775434830,-500.0,0.00065699,120]
[340747906,1729775434839,-416.22442768,0.00065699,120]
[340747907,1729775434849,-500.0,0.00065699,120]
[340747908,1729775434858,-500.0,0.00065699,120]
[340747909,1729775434868,-500.0,0.00065699,120]
[340747910,1729775434881,-500.0,0.00065699,120]
[340747911,1729775434890,-893.43,0.00065699,120]
[340747912,1729775434900,-893.43,0.00065699,120]
[340747913,1729775434909,-500.0,0.00065699,120]
[340747914,1729775434918,-500.0,0.00065699,120]
[340747915,1729775434927,-1749.11,0.00065699,120]
[340747916,1729775434936,-1749.11,0.00065699,120]
[340747917,1729775434945,-500.0,0.00065699,120]
[340747918,1729775434954,-500.0,0.00065699,120]
[340747919,1729775434963,-286.18,0.00065699,120]
[340747920,1729775434972,-500.0,0.00065699,120]
[340747921,1729775434981,-500.0,0.00065699,120]
[340747922,1729775434991,-1247.18,0.00065699,120]
[340747923,1729775435000,-1247.18,0.00065699,120]
[340747924,1729775435009,-500.0,0.00065699,120]
[340747925,1729775435018,-500.0,0.00065699,120]
[340747926,1729775435028,-500.0,0.00065699,120]
[340747927,1729775435037,-500.0,0.00065699,120]
[340747928,1729775435045,-500.0,0.00065699,120]
[340747929,1729775435055,-600.86465956,0.00065699,120]
[340747930,1729775435064,-1886.98,0.00065699,120]
[340747931,1729775435074,-1886.98,0.00065699,120]
[340747932,1729775435083,-1886.98,0.00065699,120]
[340747933,1729775435092,-293.49122637,0.00065699,120]
[340747934,1729775435101,-874.57,0.00065699,120]
[340747935,1729775435110,-874.57,0.00065699,120]
[340747936,1729775435119,-816.19,0.00065699,120]
[340747937,1729775435128,-816.19,0.00065699,120]
[340747938,1729775435137,-500.0,0.00065699,120]
[340747939,1729775435146,-500.0,0.00065699,120]
[340747940,1729775435155,-500.0,0.00065699,120]
[340747941,1729775435165,-500.0,0.00065699,120]
[340747942,1729775435174,-500.0,0.00065699,120]
[340747943,1729775435183,-500.0,0.00065699,120]
[340747944,1729775435192,-500.0,0.00065699,120]
[340747945,1729775435202,-500.0,0.00065699,120]
[340747946,1729775435212,-838.71,0.00065699,120]
[340747947,1729775435222,-838.71,0.00065699,120]
[340747948,1729775435234,-2111.79,0.00065699,120]
[340747949,1729775435244,-2111.79,0.00065699,120]
[340747950,1729775435255,-500.0,0.00065699,120]
[340747951,1729775435265,-500.0,0.00065699,120]
[340747952,1729775435275,-500.0,0.00065699,120]
[340747953,1729775435284,-500.0,0.00065699,120]
[340747954,1729775435293,-500.0,0.00065699,120]
[340747955,1729775435303,-500.0,0.00065699,120]
[340747956,1729775435314,-500.0,0.00065699,120]
[340747957,1729775435325,-243.56242928,0.00065699,120]
[340747958,1729775435335,-500.0,0.00065699,120]
[340747959,1729775435344,-500.0,0.00065699,120]
[340747960,1729775435354,-852.59,0.00065699,120]
[340747961,1729775435363,-852.59,0.00065699,120]
[340747962,1729775435372,-500000.0,0.000657,120]
[340747963,1729775435383,-8445.89883498,0.000657,30]
[340747964,1729775435393,-150.0,0.00065703,120]
[340747965,1729775435402,-151.0,0.00065753,120]
[340747966,1729775435411,-500.0,0.00065753,120]
[340747967,1729775435423,-500.0,0.00065753,120]
[340747968,1729775435432,-205.37363963,0.00065753,120]
[340747969,1729775435442,-150.0,0.00065822,120]
[340747970,1729775435451,-161.31060243,0.000659,120]
[340747971,1729775435460,-344.84332066,0.000659,2]
[340747972,1729775435471,-408.33444299,0.00065923,120]
[340747973,1729775435480,-160.35,0.0006599,120]
[340747974,1729775435490,-39998.33600849,0.00065999,61]
[340747975,1729775435499,-498.46492297,0.00065999,120]